bitfinex/quotes_BTCUSD_20240101
["timestamp","ask_amount","ask_price","bid_price","bid_amount"]
[1704096804242,0.37778566,42535.0,42534.0,0.019]
[1704096804484,0.37778566,42535.0,42534.0,0.018]
[1704096804902,0.37778566,42535.0,42526.0,0.028643]
[1704096805111,0.09328685,42534.0,42527.0,0.23321711]
[1704096805339,0.09328685,42534.0,42528.0,0.3]
[1704096805340,0.16714685,42534.0,42528.0,0.3]
[1704096805550,0.0678,42533.0,42529.0,0.23321711]
[1704096806157,0.07428,42534.0,42529.0,0.23321711]
[1704096806371,0.0597,42532.0,42529.0,0.23321711]
[1704096806586,0.0669,42533.0,42529.0,0.23321711]
[1704096806797,0.0495,42534.0,42529.0,0.23321711]
[1704096807890,0.0495,42534.0,42529.0,0.26721711]
[1704096808100,0.0495,42534.0,42529.0,0.24821711]
[1704096808364,0.0495,42534.0,42529.0,0.26721711]
[1704096810375,0.0495,42534.0,42530.0,0.2526]
[1704096810588,0.0495,42534.0,42531.0,0.23321711]
[1704096811862,0.0495,42534.0,42531.0,0.25021711]
[1704096812507,0.29666566,42535.0,42531.0,0.26221711]
[1704096813783,0.29666566,42535.0,42531.0,0.24521711]
[1704096813967,0.29666566,42535.0,42531.0,0.26221711]
[1704096814216,0.04812,42534.0,42531.0,0.26221711]
[1704096814396,0.04812,42534.0,42531.0,0.27421711]
[1704096815048,0.04812,42534.0,42531.0,0.25021711]
[1704096815259,0.04812,42534.0,42531.0,0.26221711]
[1704096815464,0.04812,42534.0,42531.0,0.24521711]
[1704096815669,0.04812,42534.0,42531.0,0.26221711]
[1704096822368,0.07242,42534.0,42531.0,0.26221711]
[1704096822824,0.06828,42533.0,42531.0,0.26221711]
[1704096823037,0.06258,42533.0,42531.0,0.26221711]
[1704096823268,0.0564,42532.0,42531.0,0.26221711]
[1704096823481,0.0705,42534.0,42531.0,0.26221711]
[1704096823685,0.05694,42532.0,42531.0,0.25021711]
[1704096823895,0.0654,42533.0,42531.0,0.25021711]
[1704096824138,0.0654,42533.0,42531.0,0.26221711]
[1704096824357,0.05868,42532.0,42531.0,0.24521711]
[1704096824534,0.05868,42532.0,42531.0,0.23321711]
[1704096824746,0.22080337,42532.0,42531.0,0.25021711]
[1704096824959,0.21858337,42532.0,42531.0,0.25021711]
[1704096825628,0.21858337,42532.0,42531.0,0.23321711]
[1704096825838,0.21858337,42532.0,42531.0,0.24521711]
[1704096826714,0.21858337,42532.0,42531.0,0.26221711]
[1704096834446,0.27478715,42532.0,42531.0,0.26221711]
[1704096837770,0.30315318,42532.0,42531.0,0.029]
[1704096838620,0.33099094,42532.0,42531.0,0.029]
[1704096838829,0.30316488,42532.0,42531.0,0.029]
[1704096839500,0.33099094,42532.0,42531.0,0.029]
[1704096840162,0.60895357,42532.0,42531.0,0.029]
[1704096840376,0.6089533,42532.0,42531.0,0.029]
[1704096842799,0.63705519,42532.0,42531.0,0.029]
[1704096845377,0.49654573,42532.0,42531.0,0.029]
[1704096849299,0.6376264,42532.0,42531.0,0.029]
[1704096852268,0.637625,42532.0,42531.0,0.029]
[1704096855497,0.49654847,42532.0,42531.0,0.029]
[1704096856569,0.63762027,42532.0,42531.0,0.029]
[1704096856989,0.6094016,42532.0,42531.0,0.029]
[1704096857423,0.63762027,42532.0,42531.0,0.029]
[1704096857625,0.49654847,42532.0,42531.0,0.029]
[1704096858470,0.63762025,42532.0,42531.0,0.029]
[1704096859742,0.49654847,42532.0,42531.0,0.029]
[1704096859969,0.6376207,42532.0,42531.0,0.029]
[1704096861479,0.49654847,42532.0,42531.0,0.029]
[1704096863599,0.447279,42532.0,42531.0,0.26221711]
[1704096863834,0.05642414,42532.0,42531.0,0.26221711]
[1704096868105,0.05642414,42534.0,42531.0,0.26221711]
[1704096868304,0.05642414,42534.0,42532.0,0.23321711]
[1704096868556,0.05642414,42534.0,42532.0,0.49231711]
[1704096869851,0.05642414,42534.0,42532.0,0.50831711]
[1704096870255,0.05642414,42534.0,42533.0,0.23321711]
[1704096870463,0.15304327,42535.0,42533.0,0.73321711]
[1704096870688,0.15304327,42535.0,42534.0,0.53321711]
[1704096871092,0.15304327,42535.0,42534.0,0.73321711]
[1704096871244,0.15304327,42535.0,42534.0,0.83321711]
[1704096871466,0.15304327,42535.0,42534.0,0.94491943]
[1704096871673,0.15304327,42535.0,42534.0,0.88853711]
[1704096871870,0.15304327,42535.0,42534.0,0.83321711]
[1704096872538,0.15304327,42535.0,42534.0,0.85121711]
[1704096873184,0.15304327,42535.0,42534.0,0.86921711]
[1704096882561,0.15304327,42535.0,42534.0,0.89751891]
[1704096900138,0.15304327,42535.0,42534.0,1.57494276]
[1704096904680,0.15304327,42535.0,42534.0,0.59751891]
[1704096908226,0.15304327,42535.0,42534.0,0.79751891]
[1704096911844,0.15304327,42535.0,42534.0,0.69751891]
[1704096912076,0.15304327,42535.0,42534.0,0.59751891]
[1704096914779,0.15304327,42535.0,42534.0,0.79751891]
[1704096920059,0.15304327,42535.0,42534.0,0.85375795]
[1704096920478,0.15304327,42535.0,42534.0,1.07262652]
[1704096920698,0.15304327,42535.0,42534.0,1.10081769]
[1704096921108,0.15304327,42535.0,42534.0,1.07533769]
[1704096921321,0.15304327,42535.0,42534.0,1.12603769]
[1704096921733,0.15304327,42535.0,42534.0,1.09771774]
[1704096922377,0.15304327,42535.0,42534.0,0.93438187]
[1704096922812,0.15304327,42535.0,42534.0,1.07533769]
[1704096923234,0.15304327,42535.0,42534.0,1.04701806]
[1704096923644,0.15304327,42535.0,42534.0,1.09237806]
[1704096923858,0.15304327,42535.0,42534.0,1.09238047]
[1704096924276,0.15304327,42535.0,42534.0,1.04702047]
[1704096925096,0.15304327,42535.0,42534.0,0.71886529]
[1704096925314,0.15304327,42535.0,42534.0,0.91886529]
[1704096925523,0.15304327,42535.0,42534.0,0.94702047]
[1704096925777,0.15304327,42535.0,42534.0,0.92402047]
[1704096926155,0.15304327,42535.0,42534.0,0.61138187]
[1704096926403,0.15304327,42535.0,42534.0,1.02402047]
[1704096927035,0.15304327,42535.0,42534.0,0.92402047]
[1704096927352,0.15304327,42535.0,42534.0,0.61138187]
[1704096927563,0.15304327,42535.0,42534.0,1.02402047]
[1704096927766,0.15304327,42535.0,42534.0,0.91138187]
[1704096927969,0.15304327,42535.0,42534.0,1.02402047]
[1704096928176,0.15304327,42535.0,42534.0,0.91138187]
[1704096930992,0.15304327,42535.0,42534.0,0.8958613]
[1704096931614,0.15304327,42535.0,42534.0,0.9958613]
[1704096935980,0.15304327,42535.0,42534.0,0.8958613]
[1704096940271,0.15304327,42535.0,42534.0,0.9958613]
[1704096943332,0.15304327,42535.0,42534.0,1.0411613]
[1704096944226,0.15304327,42535.0,42534.0,0.95668187]
[1704096944434,0.15304327,42535.0,42534.0,1.06932047]
[1704096945092,0.15304327,42535.0,42534.0,0.95668187]
[1704096945749,0.15304327,42535.0,42534.0,1.02402818]
[1704096946614,0.15304327,42535.0,42534.0,0.92402818]
[1704096947883,0.15304327,42535.0,42534.0,1.02402818]
[1704096949619,0.15304327,42535.0,42534.0,0.91138187]
[1704096949917,0.15304327,42535.0,42534.0,1.05233769]
[1704096950161,0.15304327,42535.0,42534.0,1.0240227]
[1704096952582,0.15304327,42535.0,42534.0,0.91138187]
[1704096952816,0.15304327,42535.0,42534.0,1.02403336]
[1704096953569,0.15304327,42535.0,42534.0,1.02404005]
[1704096954312,0.15304327,42535.0,42534.0,0.91138187]
[1704096954807,0.15304327,42535.0,42534.0,0.81138187]
[1704096955868,0.15304327,42535.0,42534.0,0.92405641]
[1704096957212,0.15304327,42535.0,42534.0,0.92405602]
[1704096958482,0.15304327,42535.0,42534.0,0.81138187]
[1704096959090,0.15304327,42535.0,42534.0,0.92406409]
[1704096959305,0.15304327,42535.0,42534.0,0.81138187]
[1704096959731,0.15304327,42535.0,42534.0,0.92407247]
[1704096959948,0.15304327,42535.0,42534.0,0.81138187]
[1704096960369,0.15304327,42535.0,42534.0,0.95233769]
[1704096966309,0.15304327,42535.0,42534.0,0.81138187]
[1704096968057,0.15304327,42535.0,42534.0,0.89595179]
[1704096968515,0.15304327,42535.0,42534.0,0.85389998]
[1704096968978,0.15304327,42535.0,42534.0,0.88208883]
[1704096969831,0.15304327,42535.0,42534.0,0.85389553]
[1704096973471,0.15304327,42535.0,42534.0,0.8974857]
[1704096973723,0.15304327,42535.0,42534.0,0.79751891]
[1704096973971,0.15304327,42535.0,42534.0,0.88208883]
[1704096974180,0.15304327,42535.0,42534.0,0.79751891]
[1704096974715,0.15304327,42535.0,42534.0,0.85387544]
[1704096974932,0.15304327,42535.0,42534.0,0.85387456]
[1704096976829,0.15304327,42535.0,42534.0,0.85387147]
[1704096981210,0.15304327,42535.0,42534.0,0.65387147]
[1704096981416,0.15304327,42535.0,42534.0,0.59751891]
[1704096982059,0.15304327,42535.0,42534.0,0.65387147]
[1704096982270,0.15304327,42535.0,42534.0,0.63587147]
[1704096982691,0.15304327,42535.0,42534.0,0.57951891]
[1704096982929,0.15304327,42535.0,42534.0,0.56151891]
[1704096983667,0.15304327,42535.0,42534.0,0.57951891]
[1704096984126,0.15304327,42535.0,42534.0,0.59751891]
[1704096985286,0.15304327,42535.0,42534.0,0.65386056]
[1704096986714,0.15304327,42535.0,42534.0,0.85386056]
[1704096986927,0.15304327,42535.0,42534.0,0.65386056]
[1704096994794,0.15304327,42535.0,42534.0,0.59751891]
[1704096994999,0.15304327,42535.0,42534.0,0.68204776]
[1704096995642,0.15304327,42535.0,42534.0,0.88204776]
[1704096995852,0.15304327,42535.0,42534.0,0.92830776]
[1704096996089,0.15304327,42535.0,42534.0,0.88204776]
[1704096996306,0.15304327,42535.0,42534.0,0.9198049]
[1704096999712,0.15304327,42535.0,42534.0,0.9148049]
[1704097000550,0.15304327,42535.0,42534.0,0.83027605]
[1704097000995,0.15304327,42535.0,42534.0,0.91479691]
[1704097001419,0.15304327,42535.0,42534.0,0.83027605]
[1704097004809,0.11304327,42535.0,42534.0,0.83027605]
[1704097006915,0.11304327,42535.0,42534.0,0.91483517]
[1704097009185,0.11304327,42535.0,42534.0,0.83027605]
[1704097009616,0.11304327,42535.0,42534.0,0.91484586]
[1704097010236,0.11304327,42535.0,42534.0,0.83027605]
[1704097010590,0.11304327,42535.0,42534.0,0.94298196]
[1704097011138,0.11304327,42535.0,42534.0,0.83027605]
[1704097011332,0.11304327,42535.0,42534.0,0.94298196]
[1704097016089,0.11304327,42535.0,42534.0,0.83027605]
[1704097016299,0.11304327,42535.0,42534.0,0.94298196]
[1704097019908,0.11304327,42535.0,42534.0,0.59251891]
[1704097020321,0.11304327,42535.0,42534.0,0.26421711]
[1704097020950,0.11304327,42535.0,42534.0,0.24621711]
[1704097021164,0.11304327,42535.0,42534.0,0.26421711]
[1704097021796,0.11304327,42535.0,42534.0,0.22821711]
[1704097022004,0.11304327,42535.0,42534.0,0.26221711]
[1704097022459,0.11304327,42535.0,42534.0,0.24421711]
[1704097022663,0.11304327,42535.0,42534.0,0.26321711]
[1704097045822,0.11304327,42535.0,42534.0,0.36321711]
[1704097046273,0.11304327,42535.0,42534.0,0.46321711]
[1704097047191,0.11304327,42535.0,42534.0,0.49087606]
[1704097047950,0.11304327,42535.0,42534.0,0.79087606]
[1704097048195,0.11304327,42535.0,42534.0,0.84725886]
[1704097048430,0.11304327,42535.0,42534.0,0.83689606]
[1704097048664,0.11304327,42535.0,42534.0,0.92146444]
[1704097048898,0.11304327,42535.0,42534.0,0.90546444]
[1704097049131,0.11304327,42535.0,42534.0,0.88646444]
[1704097049368,0.11304327,42535.0,42534.0,0.90546444]
[1704097049842,0.11304327,42535.0,42534.0,0.88646444]
[1704097050074,0.11304327,42535.0,42534.0,0.90546444]
[1704097050556,0.11304327,42535.0,42534.0,0.83989606]
[1704097050799,0.11304327,42535.0,42534.0,0.82089606]
[1704097051021,0.11304327,42535.0,42534.0,0.83889606]
[1704097051679,0.11304327,42535.0,42534.0,0.79287606]
[1704097053458,0.11304327,42535.0,42534.0,0.84917545]
[1704097063352,0.11304327,42535.0,42534.0,0.81217545]
[1704097063563,0.11304327,42535.0,42534.0,0.83017545]
[1704097063769,0.11304327,42535.0,42534.0,0.84917545]
[1704097069602,0.11304327,42535.0,42534.0,0.8491764]
[1704097070018,0.11304327,42535.0,42534.0,0.8301764]
[1704097070439,0.11304327,42535.0,42534.0,0.8311764]
[1704097070647,0.11304327,42535.0,42534.0,0.8491764]
[1704097073599,0.11304327,42535.0,42534.0,0.79287606]
[1704097074492,0.11304327,42535.0,42534.0,0.87732657]
[1704097075124,0.11304327,42535.0,42534.0,0.79287606]
[1704097075541,0.11304327,42535.0,42534.0,1.55476231]
[1704097080445,0.11304327,42535.0,42534.0,1.58945807]
[1704097083501,0.11304327,42535.0,42534.0,1.50500756]
[1704097085476,0.11304327,42535.0,42534.0,1.61760824]
[1704097091163,0.11304327,42535.0,42534.0,1.50500756]
[1704097091582,0.11304327,42535.0,42534.0,1.64575841]
[1704097091793,0.11304327,42535.0,42534.0,1.50500756]
[1704097092449,0.11304327,42535.0,42534.0,1.64575841]
[1704097095404,0.11304327,42535.0,42534.0,1.50500756]
[1704097096882,0.11304327,42535.0,42534.0,1.64604671]
[1704097097761,0.11304327,42535.0,42534.0,1.50500756]
[1704097103575,0.11304327,42535.0,42534.0,1.64605863]
[1704097119060,0.11304327,42535.0,42534.0,0.6775261]
[1704097119486,0.11304327,42535.0,42534.0,0.59287606]
[1704097120823,0.11304327,42535.0,42534.0,0.56521711]
[1704097121499,0.11304327,42535.0,42534.0,0.52821711]
[1704097121707,0.11304327,42535.0,42534.0,0.56421711]
[1704097122354,0.11304327,42535.0,42534.0,0.54621711]
[1704097122734,0.11304327,42535.0,42534.0,0.56521711]
[1704097123395,0.11304327,42535.0,42534.0,0.54621711]
[1704097124676,0.11304327,42535.0,42534.0,0.56521711]
[1704097125937,0.11304327,42535.0,42534.0,0.26521711]
[1704097126153,0.11304327,42535.0,42534.0,0.56521711]
[1704097148556,0.11304327,42535.0,42534.0,0.59411912]
[1704097158633,0.11304327,42535.0,42534.0,0.79411912]
[1704097161206,0.11304327,42535.0,42534.0,0.85055819]
[1704097161859,0.11304327,42535.0,42534.0,1.10505819]
[1704097165054,0.20633012,42535.0,42534.0,1.10505819]
[1704097166084,0.20633012,42535.0,42534.0,1.17940916]
[1704097166344,0.20633012,42535.0,42534.0,1.16766563]
[1704097166790,0.20633012,42535.0,42534.0,1.21332563]
[1704097167016,0.20633012,42535.0,42534.0,1.16766563]
[1704097167436,0.11304327,42535.0,42534.0,1.16766563]
[1704097169525,0.11304327,42535.0,42534.0,1.13326916]
[1704097171882,0.20633012,42535.0,42534.0,1.04861912]
[1704097172499,0.20633012,42535.0,42534.0,1.10494035]
[1704097173129,0.20633012,42535.0,42534.0,1.04861912]
[1704097173331,0.20633012,42535.0,42534.0,1.1049391]
[1704097173544,0.20633012,42535.0,42534.0,1.04861912]
[1704097174443,0.20633012,42535.0,42534.0,1.10493796]
[1704097174973,0.20633012,42535.0,42534.0,1.04861912]
[1704097175383,0.20633012,42535.0,42534.0,1.10493715]
[1704097182229,0.11304327,42535.0,42534.0,1.10493715]
[1704097182539,0.11304327,42535.0,42534.0,1.04861912]
[1704097183913,0.20633012,42535.0,42534.0,1.04861912]
[1704097184120,0.20633012,42535.0,42534.0,0.84861912]
[1704097186638,0.11304327,42535.0,42534.0,0.84861912]
[1704097186846,0.20633012,42535.0,42534.0,0.84861912]
[1704097187679,0.20633012,42535.0,42534.0,0.90495786]
[1704097190532,0.20633012,42535.0,42534.0,1.10495786]
[1704097190725,0.11304327,42535.0,42534.0,1.10495786]
[1704097191167,0.20633012,42535.0,42534.0,1.04861912]
[1704097191534,0.20633012,42535.0,42534.0,1.13326916]
[1704097192614,0.20633012,42535.0,42534.0,1.16634222]
[1704097193407,0.20633012,42535.0,42534.0,1.13326916]
[1704097194995,0.20633012,42535.0,42534.0,1.16615401]
[1704097198434,0.20633012,42535.0,42534.0,0.96615401]
[1704097199251,0.20633012,42535.0,42534.0,1.16615401]
[1704097200946,0.20633012,42535.0,42534.0,0.96615401]
[1704097201159,0.20633012,42535.0,42534.0,1.16615401]
[1704097201617,0.20633012,42535.0,42534.0,1.08150397]
[1704097202488,0.20633012,42535.0,42534.0,1.19435337]
[1704097206407,0.20633012,42535.0,42534.0,1.08150397]
[1704097209779,0.11304327,42535.0,42534.0,1.08150397]
[1704097210003,0.11304327,42535.0,42534.0,1.19431248]
[1704097211773,0.11304327,42535.0,42534.0,1.08150397]
[1704097212204,0.20633012,42535.0,42534.0,1.08150397]
[1704097213261,0.20633012,42535.0,42534.0,1.19430205]
[1704097215157,0.20633012,42535.0,42534.0,0.99430205]
[1704097217498,0.20633012,42535.0,42534.0,0.88150397]
[1704097217739,0.20633012,42535.0,42534.0,0.96611032]
[1704097217890,0.20633012,42535.0,42534.0,0.88150397]
[1704097218092,0.20633012,42535.0,42534.0,0.62700397]
[1704097218694,0.20633012,42535.0,42534.0,0.71161481]
[1704097218963,0.20633012,42535.0,42534.0,0.62700397]
[1704097219086,0.11304327,42535.0,42534.0,0.62700397]
[1704097219505,0.11304327,42535.0,42534.0,0.71161477]
[1704097219883,0.11304327,42535.0,42534.0,0.99970205]
[1704097221387,0.20633012,42535.0,42534.0,0.99970205]
[1704097222697,0.11304327,42535.0,42534.0,0.99970205]
[1704097222933,0.20633012,42535.0,42534.0,0.99970205]
[1704097223448,0.11304327,42535.0,42534.0,0.99970205]
[1704097223682,0.20633012,42535.0,42534.0,0.99970205]
[1704097227319,0.20633012,42535.0,42534.0,1.19970205]
[1704097227991,0.20633012,42535.0,42534.0,1.08690397]
[1704097228226,0.20633012,42535.0,42534.0,1.22795504]
[1704097229384,0.11304327,42535.0,42534.0,1.22795504]
[1704097239218,0.11304327,42535.0,42534.0,1.08690397]
[1704097239844,0.11304327,42535.0,42534.0,1.22795504]
[1704097245853,0.11304327,42535.0,42534.0,1.08690397]
[1704097246126,0.11304327,42535.0,42534.0,1.14726397]
[1704097246535,0.11304327,42535.0,42534.0,1.08690397]
[1704097247392,0.11304327,42535.0,42534.0,1.22792304]
[1704097248018,0.11304327,42535.0,42534.0,1.08690397]
[1704097248219,0.11304327,42535.0,42534.0,1.22791929]
[1704097248427,0.11304327,42535.0,42534.0,1.08690397]
[1704097250571,0.11304327,42535.0,42534.0,1.22791073]
[1704097255387,0.11304327,42535.0,42534.0,1.08690397]
[1704097278581,0.11304327,42535.0,42534.0,1.13916397]
[1704097284239,0.11304327,42535.0,42534.0,1.08690397]
[1704097284487,0.11304327,42535.0,42534.0,1.13922397]
[1704097284703,0.11304327,42535.0,42534.0,2.18361413]
[1704097285129,0.11304327,42535.0,42534.0,2.18361494]
[1704097285346,0.11304327,42535.0,42534.0,1.93396764]
[1704097285554,0.11304327,42535.0,42534.0,2.18348808]
[1704097285769,0.11304327,42535.0,42534.0,1.93396764]
[1704097285985,0.11304327,42535.0,42534.0,2.1644837]
[1704097286404,0.11304327,42535.0,42534.0,2.1824837]
[1704097286819,0.11304327,42535.0,42534.0,2.1464837]
[1704097287096,0.11304327,42535.0,42534.0,2.1824837]
[1704097287337,0.11304327,42535.0,42534.0,2.1644837]
[1704097287547,0.11304327,42535.0,42534.0,1.89696764]
[1704097287759,0.11304327,42535.0,42534.0,1.91496764]
[1704097288178,0.11304327,42535.0,42534.0,1.93296764]
[1704097289245,0.11304327,42535.0,42534.0,1.91496764]
[1704097289455,0.11304327,42535.0,42534.0,1.93296764]
[1704097290495,0.11304327,42535.0,42534.0,1.84222397]
[1704097290700,0.11304327,42535.0,42534.0,1.73056397]
[1704097291316,0.11304327,42535.0,42534.0,1.82230397]
[1704097291514,0.11304327,42535.0,42534.0,1.73056397]
[1704097291932,0.11304327,42535.0,42534.0,1.82242397]
[1704097292175,0.11304327,42535.0,42534.0,1.73056397]
[1704097292596,0.11304327,42535.0,42534.0,1.82728397]
[1704097292839,0.11304327,42535.0,42534.0,1.73056397]
[1704097293257,0.11304327,42535.0,42534.0,1.82152397]
[1704097293478,0.11304327,42535.0,42534.0,1.73056397]
[1704097295361,0.11304327,42535.0,42534.0,1.83202397]
[1704097304450,0.11304327,42535.0,42534.0,1.92285608]
[1704097304871,0.11304327,42535.0,42534.0,1.83202397]
[1704097306139,0.11304327,42535.0,42534.0,1.92285572]
[1704097306681,0.11304327,42535.0,42534.0,1.83202397]
[1704097307382,0.00780054,42535.0,42534.0,1.92285865]
[1704097308433,0.00549062,42535.0,42534.0,1.92285865]
[1704097317621,0.00549062,42535.0,42534.0,2.06763865]
[1704097317817,0.00549062,42535.0,42534.0,2.11245865]
[1704097318032,0.62925501,42539.0,42538.0,0.31]
[1704097318239,0.62925501,42539.0,42538.0,0.89910196]
[1704097318443,0.62925501,42539.0,42538.0,1.13262196]
[1704097318711,0.62925501,42539.0,42538.0,1.40812196]
[1704097318969,0.57925501,42539.0,42538.0,1.40812196]
[1704097319372,0.57925501,42539.0,42538.0,1.42612196]
[1704097319628,0.57925501,42539.0,42538.0,1.51698854]
[1704097320365,0.57925501,42539.0,42538.0,1.53498854]
[1704097321655,0.57925501,42539.0,42538.0,1.62904154]
[1704097323668,0.57925501,42539.0,42538.0,1.79775391]
[1704097323878,0.57925501,42539.0,42538.0,1.62904154]
[1704097324541,0.57925501,42539.0,42538.0,1.79775391]
[1704097324757,0.57925501,42539.0,42538.0,1.35761391]
[1704097324974,0.57925501,42539.0,42538.0,0.90615496]
[1704097325243,0.57925501,42539.0,42538.0,0.95991496]
[1704097326336,0.57925501,42539.0,42538.0,0.90615496]
[1704097326795,0.57925501,42539.0,42538.0,0.95787496]
[1704097327231,0.57925501,42539.0,42538.0,0.9931933]
[1704097328542,0.57925501,42539.0,42538.0,1.16190567]
[1704097330573,0.57925501,42539.0,42538.0,0.9414733]
[1704097330792,0.57925501,42539.0,42538.0,0.9991933]
[1704097340313,0.57925501,42539.0,42538.0,1.09004181]
[1704097340763,0.57925501,42539.0,42538.0,0.9991933]
[1704097341189,0.57925501,42539.0,42538.0,1.09004232]
[1704097342252,0.57925501,42539.0,42538.0,0.9991933]
[1704097342889,0.57925501,42539.0,42538.0,1.09004789]
[1704097343804,0.57925501,42539.0,42538.0,1.31904789]
[1704097344227,0.57925501,42539.0,42538.0,1.22568789]
[1704097345132,0.57925501,42539.0,42538.0,1.47520395]
[1704097346219,0.57925501,42539.0,42538.0,1.22568789]
[1704097346440,0.57925501,42539.0,42538.0,1.47523556]
[1704097347673,0.57925501,42539.0,42538.0,1.22568789]
[1704097352379,0.57925501,42539.0,42538.0,1.1348333]
[1704097362284,0.57925501,42539.0,42538.0,1.22569888]
[1704097371819,0.57925501,42539.0,42538.0,1.32013888]
[1704097372271,0.57925501,42539.0,42538.0,1.31677888]
[1704097373074,0.57925501,42539.0,42538.0,1.22569888]
[1704097375337,0.57925501,42539.0,42538.0,1.20025888]
[1704097386889,0.52207099,42539.0,42538.0,1.76253655]
[1704097387094,0.52207099,42539.0,42538.0,1.76263958]
[1704097387467,0.52207099,42539.0,42538.0,1.51298888]
[1704097387887,0.52207099,42539.0,42538.0,1.76260868]
[1704097388089,0.52207099,42539.0,42538.0,1.51298888]
[1704097388253,0.49338099,42539.0,42538.0,1.51298888]
[1704097389403,0.49338099,42539.0,42538.0,1.76258168]
[1704097389621,0.49338099,42539.0,42538.0,1.76257293]
[1704097389805,0.49338099,42539.0,42538.0,1.51298888]
[1704097390163,0.49338099,42539.0,42538.0,1.76257715]
[1704097390374,0.49338099,42539.0,42538.0,1.51298888]
[1704097390963,0.49338099,42539.0,42538.0,1.76255709]
[1704097391399,0.49338099,42539.0,42538.0,1.76255618]
[1704097391608,0.49338099,42539.0,42538.0,1.61087618]
[1704097393289,0.49338099,42539.0,42538.0,1.71383618]
[1704097396232,0.48308329,42539.0,42538.0,1.71383618]
[1704097397487,0.45526329,42539.0,42538.0,1.50368888]
[1704097398536,0.45526329,42539.0,42538.0,1.7532007]
[1704097398968,0.45526329,42539.0,42538.0,1.50368888]
[1704097398969,0.44867956,42539.0,42538.0,1.50368888]
[1704097402023,0.42100956,42539.0,42538.0,1.50368888]
[1704097406114,0.40913568,42539.0,42538.0,1.50368888]
[1704097409535,0.39084624,42539.0,42538.0,1.50368888]
[1704097412843,0.37758501,42539.0,42538.0,1.50368888]
[1704097413092,0.36684173,42539.0,42538.0,1.50368888]
[1704097415658,0.33826173,42539.0,42538.0,1.50368888]
[1704097416301,0.29999603,42539.0,42538.0,1.50368888]
[1704097416513,0.64271196,42542.0,42541.0,0.71]
[1704097416724,0.64271196,42542.0,42541.0,1.63926562]
[1704097416946,0.64271196,42542.0,42541.0,1.87722562]
[1704097417822,0.64271196,42542.0,42541.0,1.62792754]
[1704097418245,0.64271196,42542.0,42541.0,1.89612754]
[1704097418443,0.64271196,42542.0,42541.0,1.91412754]
[1704097418651,0.64271196,42542.0,42541.0,1.93212754]
[1704097425141,0.64271196,42542.0,42541.0,2.18142562]
[1704097425585,0.64271196,42542.0,42541.0,1.93212754]
[1704097426688,0.64271196,42542.0,42541.0,1.9600554]
[1704097430502,0.64271196,42542.0,42541.0,2.20935348]
[1704097431367,0.64271196,42542.0,42541.0,1.9600554]
[1704097431588,0.64271196,42542.0,42541.0,2.20941654]
[1704097432557,0.64271196,42542.0,42541.0,1.9600554]
[1704097443371,0.64271196,42542.0,42541.0,2.63718367]
[1704097443598,0.6643189,42545.0,42544.0,0.31]
[1704097443840,0.41004068,42545.0,42544.0,1.66709581]
[1704097444052,0.41004068,42545.0,42544.0,1.93589581]
[1704097444267,0.38135068,42545.0,42544.0,1.93589581]
[1704097444538,0.35342068,42545.0,42544.0,1.93589581]
[1704097444752,0.35342068,42545.0,42544.0,2.07983581]
[1704097444753,0.16322068,42545.0,42544.0,2.07983581]
[1704097444965,0.16322068,42545.0,42544.0,2.09783581]
[1704097445178,0.16322068,42545.0,42544.0,2.11583581]
[1704097445179,0.07146068,42545.0,42544.0,2.11583581]
[1704097445831,0.07146068,42545.0,42544.0,1.93589581]
[1704097446044,0.07146068,42545.0,42544.0,2.10803581]
[1704097447348,0.07146068,42545.0,42544.0,1.97189581]
[1704097448020,0.07146068,42545.0,42544.0,1.95389581]
[1704097448255,0.01363047,42545.0,42544.0,1.95389581]
[1704097448684,0.01363047,42545.0,42544.0,1.97189581]
[1704097448902,0.01363047,42545.0,42544.0,1.95389581]
[1704097449117,0.01363047,42545.0,42544.0,1.97189581]
[1704097449348,0.68592585,42548.0,42547.0,0.71]
[1704097449594,0.68592585,42548.0,42547.0,2.06709581]
[1704097449811,0.68592585,42548.0,42547.0,2.33133581]
[1704097450029,0.68592585,42548.0,42547.0,2.60663581]
[1704097450243,0.68592585,42548.0,42547.0,2.85571528]
[1704097450459,0.68592585,42548.0,42547.0,2.60663581]
[1704097450855,0.68592585,42548.0,42547.0,2.62463581]
[1704097451064,0.68592585,42548.0,42547.0,2.64263581]
[1704097453287,0.68592585,42548.0,42547.0,2.76014581]
[1704097453531,0.68592585,42548.0,42547.0,2.30313581]
[1704097460600,0.68592585,42548.0,42547.0,2.33169647]
[1704097461197,0.68592585,42548.0,42547.0,2.36649102]
[1704097467175,0.68592585,42548.0,42547.0,2.27562544]
[1704097467403,0.68592585,42548.0,42547.0,2.3442333]
[1704097467608,0.68592585,42548.0,42547.0,2.15250544]
[1704097469899,0.68592585,42548.0,42547.0,2.12950544]
[1704097470773,0.68592585,42548.0,42547.0,2.11150544]
[1704097470953,0.68592585,42548.0,42547.0,2.12950544]
[1704097472296,0.68592585,42548.0,42547.0,2.09350544]
[1704097472497,0.68592585,42548.0,42547.0,2.12950544]
[1704097473033,0.68592585,42548.0,42547.0,1.28812755]
[1704097473283,0.68592585,42548.0,42547.0,1.10779089]
[1704097473505,0.68592585,42548.0,42547.0,1.05926665]
[1704097473723,0.68592585,42548.0,42547.0,1.04134935]
[1704097474400,0.68592585,42548.0,42547.0,0.27977777]
[1704097474620,0.68592585,42548.0,42547.0,0.63602069]
[1704097475289,0.68592585,42548.0,42547.0,0.61802069]
[1704097475492,0.68592585,42548.0,42547.0,0.63602069]
[1704097475726,0.68592585,42548.0,42547.0,0.65402069]
[1704097476150,0.68592585,42548.0,42547.0,0.63602069]
[1704097476395,0.68592585,42548.0,42547.0,0.65402069]
[1704097477925,0.68592585,42548.0,42547.0,0.59777777]
[1704097479664,0.68592585,42548.0,42547.0,0.57977777]
[1704097480125,0.68592585,42548.0,42547.0,0.59777777]
[1704097480322,0.68592585,42548.0,42547.0,0.57977777]
[1704097481792,0.68592585,42548.0,42547.0,0.59777777]
[1704097484724,0.68592585,42548.0,42547.0,0.29777777]
[1704097484937,0.68592585,42548.0,42547.0,0.26921711]
[1704097486487,0.68592585,42548.0,42547.0,0.56921711]
[1704097486716,0.68592585,42548.0,42547.0,0.55121711]
[1704097487806,0.68692585,42548.0,42547.0,0.56921711]
[1704097488023,0.68692585,42548.0,42547.0,0.55121711]
[1704097488449,1.34402585,42548.0,42547.0,0.55121711]
[1704097488669,1.34502585,42548.0,42547.0,0.57021711]
[1704097492885,1.67846227,42548.0,42547.0,0.27021711]
[1704097493354,1.77656046,42548.0,42547.0,0.037]
[1704097493817,1.69860585,42548.0,42547.0,0.037]
[1704097494030,1.70760585,42548.0,42547.0,0.019]
[1704097494251,0.1,42543.0,42534.0,0.2613]
[1704097494491,0.1,42543.0,42535.0,0.23321711]
[1704097494737,0.6571,42538.0,42535.0,0.23321711]
[1704097495954,0.6581,42538.0,42535.0,0.25121711]
[1704097496199,0.6591,42538.0,42536.0,0.3]
[1704097496438,0.6591,42538.0,42537.0,0.23321711]